[Event "Early-Titled-Tuesday-Blitz-November-28-2023"]
[Site "Chess.com"]
[Date "2023.11.28"]
[Round "9"]
[White "DDTerziev04"]
[Black "Felix-Rose"]
[Result "0-1"]
[WhiteElo "2141"]
[BlackElo "2341"]
[TimeControl "180+1"]
[EndTime "9:51:41 PST"]
[Termination "Felix-Rose won on time"]

1. d4 {[%clk 0:03:00.9]} 1... d5 {[%clk 0:02:58.9]} 2. Nf3 {[%clk 0:02:58.2]}
2... Nf6 {[%clk 0:02:58.5]} 3. e3 {[%clk 0:02:57.4]} 3... c5 {[%clk 0:02:57.5]}
4. Be2 {[%clk 0:02:56]} 4... Nc6 {[%clk 0:02:57]} 5. b3 {[%clk 0:02:52.1]} 5...
cxd4 {[%clk 0:02:49.3]} 6. exd4 {[%clk 0:02:51.3]} 6... Bg4 {[%clk 0:02:48.1]}
7. O-O {[%clk 0:02:49.1]} 7... e6 {[%clk 0:02:48.5]} 8. Bb2 {[%clk 0:02:46.9]}
8... Bd6 {[%clk 0:02:47.4]} 9. Nbd2 {[%clk 0:02:46.1]} 9... O-O {[%clk
0:02:45.6]} 10. h3 {[%clk 0:02:44.6]} 10... Bh5 {[%clk 0:02:45.4]} 11. Re1
{[%clk 0:02:42.6]} 11... Rc8 {[%clk 0:02:40]} 12. c4 {[%clk 0:02:26.7]} 12...
dxc4 {[%clk 0:02:35.4]} 13. bxc4 {[%clk 0:02:27.6]} 13... b6 {[%clk 0:02:27.5]}
14. Rf1 {[%clk 0:02:19.1]} 14... Qe7 {[%clk 0:02:26.7]} 15. Bd3 {[%clk
0:02:18.1]} 15... Ba3 {[%clk 0:02:23.9]} 16. Bc3 {[%clk 0:02:06.1]} 16... Bb4
{[%clk 0:02:18.9]} 17. Bb2 {[%clk 0:02:01.6]} 17... Rfd8 {[%clk 0:02:13.1]} 18.
Ne4 {[%clk 0:01:52]} 18... Nxe4 {[%clk 0:02:02.7]} 19. Bxe4 {[%clk 0:01:51.5]}
19... Bxf3 {[%clk 0:01:59.6]} 20. Qxf3 {[%clk 0:01:46.5]} 20... Nxd4 {[%clk
0:01:48.7]} 21. Qe3 {[%clk 0:01:00]} 21... Bc5 {[%clk 0:01:28.3]} 22. Rad1
{[%clk 0:00:56.6]} 22... Qf6 {[%clk 0:01:02.8]} 23. Kh1 {[%clk 0:00:42.4]} 23...
Rc7 {[%clk 0:00:49.2]} 24. Rd3 {[%clk 0:00:26.1]} 24... Rcd7 {[%clk 0:00:45.8]}
25. Rfd1 {[%clk 0:00:24.4]} 25... e5 {[%clk 0:00:29.2]} 26. Qg3 {[%clk
0:00:14.1]} 26... g6 {[%clk 0:00:22.6]} 27. Bd5 {[%clk 0:00:12.2]} 27... Nf5
{[%clk 0:00:14.9]} 28. Qxe5 {[%clk 0:00:07.2]} 28... Qxe5 {[%clk 0:00:14.7]} 29.
Bxe5 {[%clk 0:00:08.1]} 29... Kf8 {[%clk 0:00:08.5]} 30. Rf1 {[%clk 0:00:02.8]}
30... Ne7 {[%clk 0:00:08.8]} 0-1

[Event "Early-Titled-Tuesday-Blitz-November-28-2023"]
[Site "Chess.com"]
[Date "2023.11.28"]
[Round "9"]
[White "copanchess"]
[Black "DonCiao"]
[Result "1/2-1/2"]
[WhiteElo "2174"]
[BlackElo "2112"]
[TimeControl "180+1"]
[EndTime "9:51:41 PST"]
[Termination "Game drawn by repetition"]

1. e4 {[%clk 0:03:00.9]} 1... c5 {[%clk 0:02:59.4]} 2. d4 {[%clk 0:03:00]} 2...
cxd4 {[%clk 0:02:57.9]} 3. c3 {[%clk 0:03:00.4]} 3... Nf6 {[%clk 0:02:57.5]} 4.
e5 {[%clk 0:02:59.5]} 4... Nd5 {[%clk 0:02:57.5]} 5. Nf3 {[%clk 0:02:59.5]} 5...
Nc6 {[%clk 0:02:56.6]} 6. cxd4 {[%clk 0:03:00]} 6... d6 {[%clk 0:02:55.8]} 7. a3
{[%clk 0:02:56.4]} 7... dxe5 {[%clk 0:02:54.9]} 8. dxe5 {[%clk 0:02:56.1]} 8...
Bg4 {[%clk 0:02:50.1]} 9. Be2 {[%clk 0:02:16.9]} 9... e6 {[%clk 0:02:48.9]} 10.
O-O {[%clk 0:02:16.6]} 10... Bxf3 {[%clk 0:02:47]} 11. Bxf3 {[%clk 0:02:13.2]}
11... Nxe5 {[%clk 0:02:47.1]} 12. Be2 {[%clk 0:02:10.4]} 12... Be7 {[%clk
0:02:45.1]} 13. Qb3 {[%clk 0:02:10.7]} 13... Qb6 {[%clk 0:02:39.9]} 14. Qg3
{[%clk 0:02:07.5]} 14... Ng6 {[%clk 0:02:35.9]} 15. Bd2 {[%clk 0:02:03.5]} 15...
O-O {[%clk 0:02:35.4]} 16. Nc3 {[%clk 0:02:03.7]} 16... Rad8 {[%clk 0:02:33]}
17. Rab1 {[%clk 0:02:01.6]} 17... Bf6 {[%clk 0:02:30]} 18. Nxd5 {[%clk
0:01:49.3]} 18... Rxd5 {[%clk 0:02:28.3]} 19. Be3 {[%clk 0:01:49.4]} 19... Qd6
{[%clk 0:02:15.8]} 20. Qf3 {[%clk 0:01:42.4]} 20... Ne5 {[%clk 0:01:58.4]} 21.
Qg3 {[%clk 0:01:38.4]} 21... Qd7 {[%clk 0:01:54.9]} 22. h4 {[%clk 0:01:37.2]}
22... Rd8 {[%clk 0:01:49]} 23. h5 {[%clk 0:01:36.8]} 23... Kh8 {[%clk 0:01:46]}
24. h6 {[%clk 0:01:32.6]} 24... g6 {[%clk 0:01:44.1]} 25. Qf4 {[%clk 0:01:29.5]}
25... Qe7 {[%clk 0:01:43.4]} 26. Bxa7 {[%clk 0:01:18.1]} 26... Bg5 {[%clk
0:01:24.7]} 27. Qg3 {[%clk 0:01:05.9]} 27... Bxh6 {[%clk 0:01:23.2]} 28. Rfd1
{[%clk 0:01:05.3]} 28... Rxd1+ {[%clk 0:01:19.9]} 29. Rxd1 {[%clk 0:01:05]}
29... Rxd1+ {[%clk 0:01:19.2]} 30. Bxd1 {[%clk 0:01:04.2]} 30... Bg7 {[%clk
0:01:19.4]} 31. b4 {[%clk 0:00:46.4]} 31... h5 {[%clk 0:01:08.9]} 32. Bc5 {[%clk
0:00:45]} 32... Qd7 {[%clk 0:01:08.9]} 33. Be2 {[%clk 0:00:36.4]} 33... Qd5
{[%clk 0:01:05.3]} 34. Qf4 {[%clk 0:00:34.1]} 34... Kg8 {[%clk 0:01:00.9]} 35.
a4 {[%clk 0:00:24.9]} 35... Nd3 {[%clk 0:00:54.3]} 36. Qb8+ {[%clk 0:00:21.1]}
36... Kh7 {[%clk 0:00:53.1]} 37. Bxd3 {[%clk 0:00:19.1]} 37... Qxd3 {[%clk
0:00:52.2]} 38. Qxb7 {[%clk 0:00:19.3]} 38... Qd1+ {[%clk 0:00:49.6]} 39. Kh2
{[%clk 0:00:18.3]} 39... Be5+ {[%clk 0:00:49.1]} 40. g3 {[%clk 0:00:17.3]} 40...
Kg7 {[%clk 0:00:44]} 41. a5 {[%clk 0:00:16.6]} 41... h4 {[%clk 0:00:42.6]} 42.
Qg2 {[%clk 0:00:14.1]} 42... hxg3+ {[%clk 0:00:40.3]} 43. fxg3 {[%clk
0:00:14.6]} 43... Qh5+ {[%clk 0:00:40]} 44. Kg1 {[%clk 0:00:14]} 44... Qd1+
{[%clk 0:00:39.4]} 45. Kh2 {[%clk 0:00:12.6]} 45... Qh5+ {[%clk 0:00:39.2]} 46.
Qh3 {[%clk 0:00:12.2]} 46... Qe2+ {[%clk 0:00:38.3]} 47. Qg2 {[%clk 0:00:12.9]}
47... Qh5+ {[%clk 0:00:35.2]} 1/2-1/2

[Event "Early-Titled-Tuesday-Blitz-November-28-2023"]
[Site "Chess.com"]
[Date "2023.11.28"]
[Round "9"]
[White "Kapitan_Bayan"]
[Black "Khromkin"]
[Result "1-0"]
[WhiteElo "2303"]
[BlackElo "2455"]
[TimeControl "180+1"]
[EndTime "9:51:43 PST"]
[Termination "Kapitan_Bayan won on time"]

1. e4 {[%clk 0:02:53]} 1... c5 {[%clk 0:02:59.4]} 2. Nf3 {[%clk 0:02:52]} 2...
Nc6 {[%clk 0:02:59.9]} 3. Bb5 {[%clk 0:02:49.9]} 3... g6 {[%clk 0:02:59.2]} 4.
Bxc6 {[%clk 0:02:49]} 4... dxc6 {[%clk 0:03:00.1]} 5. O-O {[%clk 0:02:46.2]}
5... Bg7 {[%clk 0:03:00.6]} 6. Re1 {[%clk 0:02:40.5]} 6... Nh6 {[%clk
0:02:49.7]} 7. d3 {[%clk 0:02:32]} 7... f6 {[%clk 0:02:43]} 8. Nc3 {[%clk
0:02:29.8]} 8... e5 {[%clk 0:02:41.6]} 9. a4 {[%clk 0:02:25.2]} 9... b6 {[%clk
0:02:39.2]} 10. a5 {[%clk 0:02:21.3]} 10... Be6 {[%clk 0:02:39.5]} 11. h3 {[%clk
0:02:13]} 11... O-O {[%clk 0:02:37.7]} 12. Be3 {[%clk 0:02:08]} 12... Nf7 {[%clk
0:02:37.9]} 13. Qd2 {[%clk 0:02:05.2]} 13... Qc7 {[%clk 0:02:27]} 14. b3 {[%clk
0:01:56.8]} 14... f5 {[%clk 0:02:23.7]} 15. Qe2 {[%clk 0:01:27.1]} 15... f4
{[%clk 0:02:10]} 16. Bd2 {[%clk 0:01:24.2]} 16... g5 {[%clk 0:02:00.6]} 17. Nh2
{[%clk 0:01:20.4]} 17... Nd6 {[%clk 0:01:40]} 18. Qh5 {[%clk 0:01:14]} 18... Qe7
{[%clk 0:01:05.3]} 19. h4 {[%clk 0:01:02.9]} 19... gxh4 {[%clk 0:00:56.1]} 20.
Nf3 {[%clk 0:01:00.7]} 20... Bf7 {[%clk 0:00:40.3]} 21. Qxh4 {[%clk 0:00:57]}
21... Bf6 {[%clk 0:00:39.2]} 22. Qh6 {[%clk 0:00:52.8]} 22... Kh8 {[%clk
0:00:36.3]} 23. Kf1 {[%clk 0:00:45.9]} 23... b5 {[%clk 0:00:28.9]} 24. Ke2
{[%clk 0:00:44.5]} 24... Rg8 {[%clk 0:00:20.1]} 25. Rh1 {[%clk 0:00:43.9]} 25...
Rg7 {[%clk 0:00:20.5]} 26. Rag1 {[%clk 0:00:40.1]} 26... c4 {[%clk 0:00:19.5]}
27. b4 {[%clk 0:00:38.2]} 27... cxd3+ {[%clk 0:00:18.7]} 28. cxd3 {[%clk
0:00:39.1]} 28... Rd8 {[%clk 0:00:17.5]} 29. Nd1 {[%clk 0:00:36.3]} 29... Nxe4
{[%clk 0:00:15.8]} 30. dxe4 {[%clk 0:00:34.8]} 30... Bc4+ {[%clk 0:00:16]} 31.
Ke1 {[%clk 0:00:34.8]} 31... Rd3 {[%clk 0:00:05.8]} 32. Nb2 {[%clk 0:00:30.5]}
32... Rb3 {[%clk 0:00:04.7]} 33. Nxc4 {[%clk 0:00:29.9]} 33... bxc4 {[%clk
0:00:05.2]} 34. g3 {[%clk 0:00:27.4]} 34... c3 {[%clk 0:00:05.2]} 35. gxf4
{[%clk 0:00:25.2]} 35... cxd2+ {[%clk 0:00:05.8]} 36. Nxd2 {[%clk 0:00:25.9]}
36... Rxg1+ {[%clk 0:00:01.9]} 37. Rxg1 {[%clk 0:00:26.1]} 1-0

[Event "Early-Titled-Tuesday-Blitz-November-28-2023"]
[Site "Chess.com"]
[Date "2023.11.28"]
[Round "9"]
[White "Chessbard1972"]
[Black "noblerone"]
[Result "1-0"]
[WhiteElo "2413"]
[BlackElo "2502"]
[TimeControl "180+1"]
[EndTime "9:51:44 PST"]
[Termination "Chessbard1972 won by resignation"]

1. d4 {[%clk 0:03:00.9]} 1... d5 {[%clk 0:02:58.1]} 2. c4 {[%clk 0:03:00.2]}
2... c6 {[%clk 0:02:57.6]} 3. Nf3 {[%clk 0:03:00.2]} 3... Nf6 {[%clk 0:02:54.1]}
4. Nc3 {[%clk 0:02:59.5]} 4... dxc4 {[%clk 0:02:51]} 5. a4 {[%clk 0:02:59.2]}
5... Bf5 {[%clk 0:02:50.4]} 6. e3 {[%clk 0:02:55.6]} 6... e6 {[%clk 0:02:50.2]}
7. a5 {[%clk 0:02:55]} 7... Na6 {[%clk 0:02:35.3]} 8. Bxc4 {[%clk 0:02:49.1]}
8... Nb4 {[%clk 0:02:31.6]} 9. O-O {[%clk 0:02:48.2]} 9... Be7 {[%clk 0:02:26]}
10. h3 {[%clk 0:02:40.8]} 10... h6 {[%clk 0:02:24.3]} 11. Qe2 {[%clk 0:02:38.4]}
11... Nbd5 {[%clk 0:02:12.8]} 12. Bd2 {[%clk 0:02:30.3]} 12... O-O {[%clk
0:02:10.2]} 13. Ne5 {[%clk 0:02:29.1]} 13... Bh7 {[%clk 0:02:01.5]} 14. f3
{[%clk 0:02:26.6]} 14... Rc8 {[%clk 0:01:55.9]} 15. e4 {[%clk 0:02:19]} 15...
Nb4 {[%clk 0:01:46.3]} 16. Be3 {[%clk 0:02:15]} 16... Nh5 {[%clk 0:01:39.1]} 17.
Rfd1 {[%clk 0:02:02.2]} 17... Bg5 {[%clk 0:01:19.7]} 18. Bf2 {[%clk 0:01:42.3]}
18... Nf4 {[%clk 0:01:14.7]} 19. Qf1 {[%clk 0:01:40.9]} 19... Ng6 {[%clk
0:00:54.1]} 20. Nd3 {[%clk 0:01:33]} 20... Nc2 {[%clk 0:00:44.3]} 21. Ra4 {[%clk
0:01:18.2]} 21... Ne3 {[%clk 0:00:38.7]} 22. Qe2 {[%clk 0:01:15.1]} 22... Nxd1
{[%clk 0:00:36.5]} 23. Nxd1 {[%clk 0:01:15.4]} 23... Nf4 {[%clk 0:00:34.9]} 24.
Nxf4 {[%clk 0:01:14.5]} 24... Bxf4 {[%clk 0:00:35.8]} 25. g3 {[%clk 0:01:14]}
25... Bc7 {[%clk 0:00:34.9]} 26. b4 {[%clk 0:01:11.2]} 26... a6 {[%clk
0:00:34.9]} 27. Ra3 {[%clk 0:01:04.2]} 27... Bg6 {[%clk 0:00:34.6]} 28. f4
{[%clk 0:01:02.3]} 28... Re8 {[%clk 0:00:30.5]} 29. Qf3 {[%clk 0:00:59]} 29...
Qe7 {[%clk 0:00:30.7]} 30. Rb3 {[%clk 0:00:55.9]} 30... Kh8 {[%clk 0:00:30.4]}
31. Ne3 {[%clk 0:00:53.4]} 31... Rcd8 {[%clk 0:00:28.7]} 32. Ng4 {[%clk
0:00:52.5]} 32... Bh5 {[%clk 0:00:28.8]} 33. Qe3 {[%clk 0:00:48.8]} 33... Bxg4
{[%clk 0:00:28.5]} 34. hxg4 {[%clk 0:00:48.8]} 34... Qf6 {[%clk 0:00:28.5]} 35.
Kg2 {[%clk 0:00:47.4]} 35... Qe7 {[%clk 0:00:23.7]} 36. Rb1 {[%clk 0:00:46.6]}
36... Kg8 {[%clk 0:00:23.3]} 37. Qf3 {[%clk 0:00:44.6]} 37... Rd7 {[%clk
0:00:23.3]} 38. Bd3 {[%clk 0:00:43]} 38... Red8 {[%clk 0:00:23.8]} 39. e5 {[%clk
0:00:42.2]} 39... Bb8 {[%clk 0:00:22.4]} 40. Qe4 {[%clk 0:00:41.6]} 40... g6
{[%clk 0:00:22.7]} 41. f5 {[%clk 0:00:41.4]} 41... exf5 {[%clk 0:00:16.1]} 42.
gxf5 {[%clk 0:00:41]} 42... Qg5 {[%clk 0:00:16]} 43. fxg6 {[%clk 0:00:28.1]}
43... fxg6 {[%clk 0:00:14.6]} 44. Be3 {[%clk 0:00:24.3]} 44... Qg4 {[%clk
0:00:12.6]} 45. Qxg4 {[%clk 0:00:22.8]} 1-0

[Event "Early-Titled-Tuesday-Blitz-November-28-2023"]
[Site "Chess.com"]
[Date "2023.11.28"]
[Round "9"]
[White "tantaan"]
[Black "ideika"]
[Result "1-0"]
[WhiteElo "2350"]
[BlackElo "2178"]
[TimeControl "180+1"]
[EndTime "9:51:45 PST"]
[Termination "tantaan won on time"]

1. d4 {[%clk 0:03:00.9]} 1... d5 {[%clk 0:02:59.4]} 2. c4 {[%clk 0:03:00.4]}
2... e6 {[%clk 0:02:59.5]} 3. Nc3 {[%clk 0:03:00.5]} 3... c6 {[%clk 0:02:59.5]}
4. Nf3 {[%clk 0:02:58.4]} 4... Nf6 {[%clk 0:02:59.3]} 5. e3 {[%clk 0:02:58.4]}
5... Nbd7 {[%clk 0:02:58.8]} 6. Be2 {[%clk 0:02:57.7]} 6... Bd6 {[%clk
0:02:58.7]} 7. O-O {[%clk 0:02:57.8]} 7... O-O {[%clk 0:02:58.7]} 8. b3 {[%clk
0:02:57.9]} 8... dxc4 {[%clk 0:02:58.8]} 9. bxc4 {[%clk 0:02:57.8]} 9... e5
{[%clk 0:02:59.1]} 10. Bb2 {[%clk 0:02:56.2]} 10... Qe7 {[%clk 0:02:58.7]} 11.
Re1 {[%clk 0:02:53.5]} 11... Re8 {[%clk 0:02:36.6]} 12. e4 {[%clk 0:02:26]}
12... exd4 {[%clk 0:02:17.9]} 13. Nxd4 {[%clk 0:02:25.1]} 13... Nc5 {[%clk
0:01:54.7]} 14. Bf3 {[%clk 0:02:02.3]} 14... Qe5 {[%clk 0:01:34]} 15. g3 {[%clk
0:01:58.2]} 15... Bh3 {[%clk 0:01:33.8]} 16. Qe2 {[%clk 0:01:44.4]} 16... Qxd4
{[%clk 0:01:23.8]} 17. Rad1 {[%clk 0:00:38.2]} 17... Qe5 {[%clk 0:01:22.8]} 18.
Nb5 {[%clk 0:00:38.4]} 18... cxb5 {[%clk 0:01:15.9]} 19. Bxe5 {[%clk 0:00:38.1]}
19... Bxe5 {[%clk 0:01:14.7]} 20. cxb5 {[%clk 0:00:37.9]} 20... b6 {[%clk
0:01:11.5]} 21. Bg2 {[%clk 0:00:38]} 21... Bxg2 {[%clk 0:01:05.2]} 22. Kxg2
{[%clk 0:00:38.9]} 22... Nfxe4 {[%clk 0:00:58.1]} 23. Qf3 {[%clk 0:00:38.1]}
23... Bc3 {[%clk 0:00:20.3]} 24. Re3 {[%clk 0:00:36.2]} 24... Bd2 {[%clk
0:00:16.6]} 25. Re2 {[%clk 0:00:29.6]} 25... Bg5 {[%clk 0:00:13.3]} 26. h4
{[%clk 0:00:28.9]} 26... Bh6 {[%clk 0:00:11.5]} 27. Rde1 {[%clk 0:00:28.3]}
27... Nf6 {[%clk 0:00:10.1]} 28. Rxe8+ {[%clk 0:00:27.8]} 28... Rxe8 {[%clk
0:00:10.1]} 29. Rxe8+ {[%clk 0:00:27.3]} 29... Nxe8 {[%clk 0:00:09.3]} 30. Qa8
{[%clk 0:00:25.2]} 30... Kf8 {[%clk 0:00:09.3]} 31. Qxa7 {[%clk 0:00:24.1]}
31... g6 {[%clk 0:00:02.5]} 32. Qxb6 {[%clk 0:00:23.8]} 32... Ne6 {[%clk
0:00:02.5]} 33. a4 {[%clk 0:00:21.1]} 33... Bg7 {[%clk 0:00:01.1]} 34. a5 {[%clk
0:00:20.2]} 1-0

[Event "Early-Titled-Tuesday-Blitz-November-28-2023"]
[Site "Chess.com"]
[Date "2023.11.28"]
[Round "9"]
[White "secretsuperstar7"]
[Black "Witty_Alien"]
[Result "1-0"]
[WhiteElo "2447"]
[BlackElo "2234"]
[TimeControl "180+1"]
[EndTime "9:51:45 PST"]
[Termination "secretsuperstar7 won on time"]

1. c4 {[%clk 0:02:58.5]} 1... b5 {[%clk 0:02:59.4]} 2. cxb5 {[%clk 0:02:56]}
2... a6 {[%clk 0:03:00.1]} 3. bxa6 {[%clk 0:02:55.8]} 3... Rxa6 {[%clk
0:02:59.6]} 4. e4 {[%clk 0:02:53.8]} 4... Re6 {[%clk 0:02:58.6]} 5. Nc3 {[%clk
0:02:53.2]} 5... d5 {[%clk 0:02:58.5]} 6. d3 {[%clk 0:02:43.9]} 6... Nf6 {[%clk
0:02:53.5]} 7. Bg5 {[%clk 0:02:30]} 7... dxe4 {[%clk 0:02:47.6]} 8. Bxf6 {[%clk
0:02:28]} 8... exd3+ {[%clk 0:02:46.5]} 9. Kd2 {[%clk 0:02:21]} 9... exf6 {[%clk
0:02:45.4]} 10. Bxd3 {[%clk 0:02:10.5]} 10... Nc6 {[%clk 0:02:34.7]} 11. Nf3
{[%clk 0:01:54.1]} 11... Ba6 {[%clk 0:02:24.7]} 12. Ne1 {[%clk 0:01:43.4]} 12...
Bc5 {[%clk 0:02:12.9]} 13. Qa4 {[%clk 0:01:38.3]} 13... Bb7 {[%clk 0:00:37.5]}
14. Rd1 {[%clk 0:01:33.1]} 14... O-O {[%clk 0:00:36.4]} 15. Kc1 {[%clk
0:01:32.5]} 15... Nd4 {[%clk 0:00:31.8]} 16. Nc2 {[%clk 0:01:28.3]} 16... Rd6
{[%clk 0:00:20.4]} 17. Ne3 {[%clk 0:01:14.8]} 17... Bc6 {[%clk 0:00:17.4]} 18.
Qc4 {[%clk 0:01:14.3]} 18... Bb6 {[%clk 0:00:17]} 19. Nf5 {[%clk 0:01:08.4]}
19... Nxf5 {[%clk 0:00:15.6]} 20. Bxf5 {[%clk 0:01:08.6]} 20... Rxd1+ {[%clk
0:00:15.3]} 21. Rxd1 {[%clk 0:01:08.6]} 21... Qa8 {[%clk 0:00:15.3]} 22. Qh4
{[%clk 0:01:01.5]} 22... g6 {[%clk 0:00:15.2]} 23. Bc2 {[%clk 0:00:58.4]} 23...
Kg7 {[%clk 0:00:15.5]} 24. g4 {[%clk 0:00:53.6]} 24... Bf3 {[%clk 0:00:13.4]}
25. Re1 {[%clk 0:00:50.8]} 25... Qa5 {[%clk 0:00:10]} 26. Qg3 {[%clk 0:00:43.8]}
26... Qg5+ {[%clk 0:00:07.9]} 27. Kb1 {[%clk 0:00:42.8]} 27... Qd2 {[%clk
0:00:08.6]} 28. Rc1 {[%clk 0:00:34.5]} 28... Bc6 {[%clk 0:00:06.6]} 29. f4
{[%clk 0:00:29.1]} 29... Rb8 {[%clk 0:00:06.4]} 30. Rd1 {[%clk 0:00:23.4]} 30...
Qe3 {[%clk 0:00:03.2]} 31. Bb3 {[%clk 0:00:16.1]} 31... Qc5 {[%clk 0:00:01.9]}
32. g5 {[%clk 0:00:15.2]} 32... fxg5 {[%clk 0:00:02.1]} 33. fxg5 {[%clk
0:00:15.3]} 33... Qf5+ {[%clk 0:00:02.5]} 34. Ka1 {[%clk 0:00:15]} 34... Ba5
{[%clk 0:00:03.1]} 35. Rc1 {[%clk 0:00:13.6]} 35... Rxb3 {[%clk 0:00:03]} 36.
axb3 {[%clk 0:00:13.3]} 36... Bxc3 {[%clk 0:00:02.5]} 37. Qxc3+ {[%clk
0:00:12.9]} 1-0

[Event "Early-Titled-Tuesday-Blitz-November-28-2023"]
[Site "Chess.com"]
[Date "2023.11.28"]
[Round "9"]
[White "Quattroporte300"]
[Black "Mikhail_Golubev"]
[Result "0-1"]
[WhiteElo "2415"]
[BlackElo "2590"]
[TimeControl "180+1"]
[EndTime "9:51:53 PST"]
[Termination "Mikhail_Golubev won on time"]

1. e4 {[%clk 0:03:00.9]} 1... c5 {[%clk 0:02:59.9]} 2. Nc3 {[%clk 0:02:58.4]}
2... Nc6 {[%clk 0:02:57.9]} 3. Bb5 {[%clk 0:02:58]} 3... Nd4 {[%clk 0:02:56.9]}
4. Bc4 {[%clk 0:02:58.4]} 4... e6 {[%clk 0:02:54.6]} 5. Nge2 {[%clk 0:02:58]}
5... Nf6 {[%clk 0:02:54.3]} 6. O-O {[%clk 0:02:54.7]} 6... a6 {[%clk 0:02:53.2]}
7. a4 {[%clk 0:02:54.3]} 7... d5 {[%clk 0:02:47]} 8. exd5 {[%clk 0:02:54.8]}
8... exd5 {[%clk 0:02:47.2]} 9. Ba2 {[%clk 0:02:54.6]} 9... Nxe2+ {[%clk
0:02:35.4]} 10. Qxe2+ {[%clk 0:02:53.9]} 10... Be7 {[%clk 0:02:29.7]} 11. Re1
{[%clk 0:02:52.4]} 11... Be6 {[%clk 0:02:25]} 12. d3 {[%clk 0:02:48]} 12... O-O
{[%clk 0:02:23.4]} 13. Bg5 {[%clk 0:02:47.8]} 13... Qd7 {[%clk 0:02:09.9]} 14.
h3 {[%clk 0:02:45.6]} 14... Rad8 {[%clk 0:02:03.7]} 15. Qf3 {[%clk 0:02:42.7]}
15... h6 {[%clk 0:02:01.1]} 16. Bh4 {[%clk 0:02:36.1]} 16... Rfe8 {[%clk
0:01:54.5]} 17. a5 {[%clk 0:02:34.5]} 17... Qc7 {[%clk 0:01:17.5]} 18. Bg3
{[%clk 0:02:15.3]} 18... Qc6 {[%clk 0:01:14.1]} 19. Bb3 {[%clk 0:02:10.5]} 19...
Rf8 {[%clk 0:01:06]} 20. Be5 {[%clk 0:01:59.4]} 20... Nh7 {[%clk 0:00:56.2]} 21.
Qg3 {[%clk 0:01:43.1]} 21... Bf6 {[%clk 0:00:55.5]} 22. Ba4 {[%clk 0:01:34]}
22... Bxe5 {[%clk 0:00:48.2]} 23. Rxe5 {[%clk 0:01:32.2]} 23... Qc7 {[%clk
0:00:46.4]} 24. Bb3 {[%clk 0:01:11.1]} 24... Nf6 {[%clk 0:00:40.4]} 25. f4
{[%clk 0:00:58.8]} 25... c4 {[%clk 0:00:37.3]} 26. Ba4 {[%clk 0:00:45]} 26...
Qxa5 {[%clk 0:00:31.6]} 27. f5 {[%clk 0:00:38]} 27... Qb6+ {[%clk 0:00:29.7]}
28. Kh2 {[%clk 0:00:35.4]} 28... Qxb2 {[%clk 0:00:23.7]} 29. Rae1 {[%clk
0:00:13.4]} 29... Qxc3 {[%clk 0:00:21.5]} 30. fxe6 {[%clk 0:00:12.7]} 30... fxe6
{[%clk 0:00:21.4]} 31. Rxe6 {[%clk 0:00:13.1]} 31... cxd3 {[%clk 0:00:19.9]} 32.
cxd3 {[%clk 0:00:13.8]} 32... Rf7 {[%clk 0:00:18.1]} 33. Re7 {[%clk 0:00:11.6]}
33... Rdf8 {[%clk 0:00:17.1]} 34. Bd1 {[%clk 0:00:06.7]} 34... Rxe7 {[%clk
0:00:15]} 35. Rxe7 {[%clk 0:00:06.2]} 35... Rf7 {[%clk 0:00:12.8]} 36. Re6
{[%clk 0:00:05.5]} 36... Qc7 {[%clk 0:00:11.2]} 37. Re5 {[%clk 0:00:01.7]} 37...
Nd7 {[%clk 0:00:08.5]} 38. Re8+ {[%clk 0:00:01.4]} 38... Nf8 {[%clk 0:00:08.5]}
0-1

[Event "Early-Titled-Tuesday-Blitz-November-28-2023"]
[Site "Chess.com"]
[Date "2023.11.28"]
[Round "9"]
[White "GMthekingindian"]
[Black "guillembaches"]
[Result "1-0"]
[WhiteElo "2329"]
[BlackElo "2501"]
[TimeControl "180+1"]
[EndTime "9:51:53 PST"]
[Termination "GMthekingindian won on time"]

1. d4 {[%clk 0:03:00.9]} 1... d5 {[%clk 0:03:00.5]} 2. Nc3 {[%clk 0:03:00.3]}
2... e6 {[%clk 0:03:00.3]} 3. e4 {[%clk 0:03:00]} 3... dxe4 {[%clk 0:02:59]} 4.
Nxe4 {[%clk 0:03:00.9]} 4... Nf6 {[%clk 0:02:59.4]} 5. Nxf6+ {[%clk 0:02:58.8]}
5... gxf6 {[%clk 0:02:58.7]} 6. g3 {[%clk 0:02:54.8]} 6... c5 {[%clk 0:02:57.4]}
7. Be3 {[%clk 0:02:52.8]} 7... Nc6 {[%clk 0:02:50.3]} 8. dxc5 {[%clk 0:02:48.8]}
8... Qxd1+ {[%clk 0:02:30.5]} 9. Rxd1 {[%clk 0:02:46.4]} 9... Bd7 {[%clk
0:02:29.6]} 10. c3 {[%clk 0:02:43.1]} 10... Rc8 {[%clk 0:02:21.9]} 11. Bg2
{[%clk 0:02:37.9]} 11... a5 {[%clk 0:02:16.1]} 12. Ne2 {[%clk 0:02:30.1]} 12...
Rc7 {[%clk 0:02:12.3]} 13. Nd4 {[%clk 0:02:22.1]} 13... Nxd4 {[%clk 0:02:11.5]}
14. cxd4 {[%clk 0:02:20.2]} 14... Bb5 {[%clk 0:02:09.3]} 15. f4 {[%clk 0:01:50]}
15... h5 {[%clk 0:02:06]} 16. h3 {[%clk 0:01:46.2]} 16... f5 {[%clk 0:02:01.7]}
17. Kf2 {[%clk 0:01:43.2]} 17... h4 {[%clk 0:02:01.6]} 18. g4 {[%clk 0:01:40.4]}
18... fxg4 {[%clk 0:01:52.9]} 19. hxg4 {[%clk 0:01:39.9]} 19... Bc6 {[%clk
0:01:53.1]} 20. d5 {[%clk 0:01:34.2]} 20... exd5 {[%clk 0:01:44]} 21. Bxd5
{[%clk 0:01:34.7]} 21... Bg7 {[%clk 0:01:39.3]} 22. b3 {[%clk 0:01:24.3]} 22...
Re7 {[%clk 0:01:31.7]} 23. Bxc6+ {[%clk 0:01:18.3]} 23... bxc6 {[%clk
0:01:31.6]} 24. Rd6 {[%clk 0:01:17.2]} 24... O-O {[%clk 0:01:17.1]} 25. Rxh4
{[%clk 0:00:58.4]} 25... Rfe8 {[%clk 0:01:17.4]} 26. Rh3 {[%clk 0:00:58.8]}
26... a4 {[%clk 0:01:03.7]} 27. b4 {[%clk 0:00:42.5]} 27... a3 {[%clk
0:00:58.4]} 28. f5 {[%clk 0:00:32.6]} 28... Bb2 {[%clk 0:00:54.1]} 29. g5 {[%clk
0:00:18.3]} 29... Re4 {[%clk 0:00:49.9]} 30. g6 {[%clk 0:00:17.4]} 30... Rxb4
{[%clk 0:00:38.9]} 31. gxf7+ {[%clk 0:00:16.8]} 31... Kxf7 {[%clk 0:00:39.8]}
32. Rh7+ {[%clk 0:00:16.6]} 32... Kg8 {[%clk 0:00:37.7]} 33. Rhd7 {[%clk
0:00:15.8]} 33... Rbe4 {[%clk 0:00:34]} 34. Rg6+ {[%clk 0:00:15.6]} 34... Kh8
{[%clk 0:00:30]} 35. Rh6+ {[%clk 0:00:16]} 35... Kg8 {[%clk 0:00:30.3]} 36. Rg6+
{[%clk 0:00:16.9]} 36... Kh8 {[%clk 0:00:30.8]} 37. Bh6 {[%clk 0:00:17.3]} 37...
Bd4+ {[%clk 0:00:26.6]} 38. Kf3 {[%clk 0:00:17.7]} 38... Bb2 {[%clk 0:00:18.6]}
39. Bg7+ {[%clk 0:00:18]} 39... Bxg7 {[%clk 0:00:18.7]} 40. Rgxg7 {[%clk
0:00:18.9]} 40... Rc4 {[%clk 0:00:17]} 41. Rh7+ {[%clk 0:00:18.7]} 41... Kg8
{[%clk 0:00:17.4]} 42. Rdg7+ {[%clk 0:00:19.4]} 42... Kf8 {[%clk 0:00:17.8]} 43.
f6 {[%clk 0:00:20.3]} 43... Rc3+ {[%clk 0:00:16.4]} 44. Kf4 {[%clk 0:00:20.9]}
44... Rc4+ {[%clk 0:00:16.7]} 45. Kf5 {[%clk 0:00:21.5]} 1-0